fUSD/lending_fUSD_20260201
["ID","MTS","AMOUNT","RATE_DAILY","PERIOD"]
[404223675,1769975443613,-3510.8469,0.00017842,2]
[404223676,1769975443623,-166.66,0.00017886,2]
[404223677,1769975443637,-8770.59704536,0.000179,3]
[404223678,1769975443646,-1000.0,0.000179,2]
[404223679,1769975443656,-607.067,0.000179,2]
[404223680,1769975443666,-18352.14614323,0.000179,2]
[404223681,1769975443675,-156.91177193,0.000179,2]
[404223682,1769975443684,-202.47674057,0.000179,2]
[404223683,1769975443693,-494.3343481,0.000179,2]
[404223684,1769975443702,-6416.41010821,0.000179,2]
[404223685,1769975443711,-181.71380593,0.000179,2]
[404223686,1769975443721,-411.57510814,0.000179,2]
[404223687,1769975443732,-5775.03120985,0.000179,2]
[404223688,1769975443741,-3630.82660917,0.000179,2]
[404223689,1769975443750,-6626.0,0.000179,2]
[404223690,1769975443761,-372.99,0.0001791,2]
[404223691,1769975443770,-1334.0,0.0001791,2]
[404223692,1769975443780,-616.0,0.0001791,2]
[404223693,1769975443790,-917.0,0.0001791,2]
[404223694,1769975443801,-3252.0,0.0001791,2]
[404223695,1769975443812,-2445.0,0.0001791,2]
[404223696,1769975443821,-6577.0,0.0001791,2]
[404223697,1769975443831,-1079.0,0.00017976,2]
[404223698,1769975443841,-233.0,0.00017987,2]
[404223699,1769975443851,-248.97090881,0.0001799,2]
[404223700,1769975443861,-248.97090881,0.0001799,2]
[404223701,1769975443870,-6182.9946906,0.00017992,2]
[404223702,1769975443884,-5048.1328742,0.00017992,2]
[404223703,1769975443894,-150.0,0.00017999,2]
[404223704,1769975443904,-150.0,0.00017999,2]
[404223705,1769975443913,-150.0,0.00017999,2]
[404223706,1769975443922,-150.0,0.00017999,2]
[404223707,1769975443931,-150.0,0.00017999,2]
[404223708,1769975443940,-281.69935258,0.00017999,2]
[404223709,1769975443950,-300.0,0.00017999,2]
[404223710,1769975443960,-300.0,0.00017999,2]
[404223711,1769975443969,-3662747.3112361,0.00018,2]
[404223712,1769975443979,-754313.63615415,0.00018,2]
[404223714,1769975444089,-2542.23565072,0.00018,2]
[404223716,1769975444392,-1000.0,0.00013564,2]
[404223717,1769975444402,-71.72885171,0.00014029,2]
[404223718,1769975444524,-338.27114829,0.00014029,2]
[404223719,1769975444533,-2050.31331896,0.00018,2]
[404223728,1769975445733,-1500.0,0.000178,2]
[404223729,1769975445893,-377496.07253004,0.00018,2]
[404223730,1769975445904,-81677.46205746,0.00018,2]
[404223736,1769975666067,-2500.0,0.00013564,2]
[404223737,1769975666095,-47.0,0.00013564,2]
[404223738,1769975727099,-168.0,0.00013428,2]
[404223739,1769975727123,-953.0,0.00013564,2]
[404223740,1769975727149,-500.0,0.00014373,2]
[404223741,1769975727175,-500.0,0.00014373,2]
[404223742,1769975727203,-150.01124847,0.00014919,2]
[404223789,1769976339049,-1011.54,0.00014011,2]
[404223790,1769976339075,-266.0,0.00014011,2]
[404223888,1769976631631,-276.65889505,0.00014373,2]
[404223890,1769976631644,-223.34110495,0.00014373,2]
[404223891,1769976631654,-87.90389505,0.00014373,2]
[404223892,1769976631666,-181.09610495,0.00014373,2]
[404223893,1769976631676,-1287.57445583,0.00015334,2]
[404223894,1769976631687,-255.15185317,0.00015334,2]
[404223895,1769976631697,-150.01383074,0.00015412,2]
[404223896,1769976631707,-671.95764517,0.00015809,2]
[404223897,1769976631719,-528.04235483,0.00015809,2]
[404223898,1769976631729,-300.0,0.0001581,2]
[404223899,1769976631739,-146.13649361,0.0001581,2]
[404223900,1769976631750,-133.40842363,0.0001581,2]
[404223901,1769976631760,-733.88622972,0.0001581,2]
[404223902,1769976631774,-3.8372297,0.0001581,2]
[404223903,1769976631784,-491.35373865,0.0001581,2]
[404223904,1769976631799,-810.07788892,0.0001581,2]
[404223905,1769976631809,-1946.86388133,0.0001581,2]
[404223906,1769976631819,-2049.35820975,0.0001581,2]
[404223907,1769976631831,-339.75260614,0.0001581,2]
[404223908,1769976631844,-245.06138411,0.0001581,2]
[404223910,1769976631854,-3240.0,0.00015965,2]
[404223912,1769976631864,-164.91,0.00016115,2]
[404223914,1769976631876,-500.0,0.00016115,2]
[404223916,1769976631885,-344.06,0.00016183,2]
[404223918,1769976631895,-178.39,0.00016183,2]
[404223921,1769976631905,-151.0,0.00016269,2]
[404223923,1769976631916,-151.0,0.00016269,2]
[404223925,1769976631926,-594.0,0.00016378,2]
[404223927,1769976631935,-150.0,0.00016493,2]
[404223929,1769976631946,-209.46,0.00016609,2]
[404223931,1769976631955,-181.71380593,0.00016642,2]
[404223933,1769976631965,-156.91177193,0.00016642,2]
[404223935,1769976631978,-1952.66958757,0.00016642,2]
[404223937,1769976631988,-202.47674057,0.00016642,2]
[404223939,1769976631997,-159.05238023,0.00016675,2]
[404223941,1769976632008,-2935.8,0.00016675,2]
[404223943,1769976632018,-150.01383074,0.00016689,2]
[404223945,1769976632028,-150.0,0.00016694,2]
[404223948,1769976632039,-150.0,0.00016694,2]
[404223950,1769976632051,-165.98060587,0.00016711,2]
[404223952,1769976632060,-185.10213393,0.0001672,2]
[404223954,1769976632072,-500.0,0.0001672,2]
[404223956,1769976632082,-303.66728988,0.0001672,2]
[404223958,1769976632093,-500.0,0.0001672,2]
[404223960,1769976632102,-348.85438829,0.0001672,2]
[404223962,1769976632112,-500.0,0.0001672,2]
[404223964,1769976632121,-500.0,0.0001672,2]
[404223966,1769976632130,-500.0,0.0001672,2]
[404223968,1769976632140,-507.10420916,0.0001672,2]
[404223970,1769976632151,-500.0,0.0001672,2]
[404223972,1769976632161,-500.0,0.0001672,2]
[404223974,1769976632174,-500.0,0.0001672,2]
[404223976,1769976632184,-500.0,0.0001672,2]
[404223978,1769976632194,-500.0,0.0001672,2]
[404223981,1769976632203,-172.16011428,0.0001672,2]
[404223983,1769976632216,-500.0,0.0001672,2]
[404223985,1769976632226,-500.0,0.0001672,2]
[404223987,1769976632236,-500.0,0.0001672,2]
[404223989,1769976632246,-500.0,0.0001672,2]
[404223991,1769976632255,-7915.0,0.00016721,2]
[404223993,1769976632265,-54025.43252678,0.00016721,2]
[404223995,1769976632277,-82029.74451619,0.00016721,2]
[404223997,1769976632289,-119435.69654467,0.00016721,2]
[404223998,1769976632301,-915.05370722,0.00016721,2]
[404224234,1769976637751,-1931.45747354,0.00016721,2]
[404224235,1769976637805,-628.250007,0.00016721,2]
[404224236,1769976637817,-581.1401268,0.00016721,2]
[404224349,1769976639755,-360.874,0.00016721,2]
[404224350,1769976639812,-334.3262,0.00016721,2]
[404224351,1769976639825,-6919.86445026,0.00016721,2]
[404224352,1769976639867,-2632838.16044754,0.00016721,2]
[404224353,1769976639877,-322.6107,0.00016742,2]
[404224354,1769976639889,-236.00479067,0.00016742,2]
[404224355,1769976639899,-174.61919141,0.00016742,2]
[404224356,1769976639913,-578.20924308,0.00016742,2]
[404224357,1769976639923,-209.40437684,0.00016742,2]
[404224358,1769976639934,-150.0,0.00016749,2]
[404224359,1769976639944,-1952.66958757,0.00016782,2]
[404224360,1769976639954,-217.15233878,0.00016797,2]
[404224361,1769976639964,-150.0,0.00016804,2]
[404224362,1769976639974,-151.0,0.00016811,2]
[404224363,1769976639985,-500.0,0.00016811,2]
[404224364,1769976639996,-151.0,0.00016811,2]
[404224365,1769976640007,-500.0,0.00016811,2]
[404224366,1769976640018,-500.0,0.00016811,2]
[404224367,1769976640029,-250.0,0.00016811,2]
[404224368,1769976640041,-250.0,0.00016811,2]
[404224369,1769976640051,-151.0,0.00016811,2]
[404224370,1769976640063,-500.0,0.00016811,2]
[404224371,1769976640074,-500.0,0.00016811,2]
[404224372,1769976640085,-250.0,0.00016811,2]
[404224373,1769976640094,-250.0,0.00016811,2]
[404224374,1769976640104,-151.0,0.00016811,2]
[404224375,1769976640114,-500.0,0.00016811,2]
[404224376,1769976640124,-500.0,0.00016811,2]
[404224377,1769976640135,-250.0,0.00016811,2]
[404224378,1769976640146,-250.0,0.00016811,2]
[404224392,1769976640170,-151.0,0.00016811,2]
[404224393,1769976640485,-500.0,0.00016811,2]
[404224394,1769976640495,-500.0,0.00016811,2]
[404224395,1769976640505,-250.0,0.00016811,2]
[404224396,1769976640515,-250.0,0.00016811,2]
[404224397,1769976640524,-151.0,0.00016811,2]
[404224398,1769976640534,-500.0,0.00016811,2]
[404224399,1769976640543,-500.0,0.00016811,2]
[404224400,1769976640553,-250.0,0.00016811,2]
[404224401,1769976640562,-250.0,0.00016811,2]
[404224402,1769976640571,-151.0,0.00016811,2]
[404224403,1769976640581,-500.0,0.00016811,2]
[404224404,1769976640590,-500.0,0.00016811,2]
[404224405,1769976640599,-250.0,0.00016811,2]
[404224406,1769976640608,-250.0,0.00016811,2]
[404224407,1769976640618,-151.0,0.00016811,2]
[404224408,1769976640627,-500.0,0.00016811,2]
[404224409,1769976640636,-500.0,0.00016811,2]
[404224410,1769976640646,-250.0,0.00016811,2]
[404224411,1769976640657,-250.0,0.00016811,2]
[404224412,1769976640666,-151.0,0.00016811,2]
[404224413,1769976640676,-500.0,0.00016811,2]
[404224414,1769976640685,-500.0,0.00016811,2]
[404224415,1769976640695,-250.0,0.00016811,2]
[404224416,1769976640705,-250.0,0.00016811,2]
[404224417,1769976640714,-151.0,0.00016811,2]
[404224418,1769976640723,-500.0,0.00016811,2]
[404224419,1769976640733,-500.0,0.00016811,2]
[404224420,1769976640743,-500.0,0.00016811,2]
[404224421,1769976640753,-250.0,0.00016811,2]
[404224422,1769976640762,-250.0,0.00016811,2]
[404224423,1769976640772,-151.0,0.00016811,2]
[404224424,1769976640781,-500.0,0.00016811,2]
[404224425,1769976640793,-500.0,0.00016811,2]
[404224426,1769976640803,-500.0,0.00016811,2]
[404224427,1769976640812,-250.0,0.00016811,2]
[404224428,1769976640825,-500.0,0.00016811,2]
[404224429,1769976640835,-500.0,0.00016811,2]
[404224430,1769976640845,-250.0,0.00016811,2]
[404224431,1769976640855,-250.0,0.00016811,2]
[404224432,1769976640864,-500.0,0.00016811,2]
[404224433,1769976640877,-250.0,0.00016811,2]
[404224434,1769976640887,-500.0,0.00016811,2]
[404224435,1769976640896,-500.0,0.00016811,2]
[404224436,1769976640908,-200.0,0.00016811,2]
[404224437,1769976640918,-500.0,0.00016811,2]
[404224438,1769976640927,-721.12765535,0.00016811,2]
[404224439,1769976640936,-151.0,0.00016811,2]
[404224440,1769976640945,-500.0,0.00016811,2]
[404224441,1769976640954,-151.0,0.00016811,2]
[404224442,1769976640963,-1428.38747117,0.00016811,2]
[404224443,1769976640972,-500.0,0.00016811,2]
[404224444,1769976640981,-250.0,0.00016811,2]
[404224445,1769976640990,-151.0,0.00016811,2]
[404224446,1769976640999,-500.0,0.00016811,2]
[404224447,1769976641009,-250.0,0.00016811,2]
[404224448,1769976641018,-151.0,0.00016811,2]
[404224449,1769976641027,-500.0,0.00016811,2]
[404224450,1769976641036,-250.0,0.00016811,2]
[404224451,1769976641045,-151.0,0.00016811,2]
[404224452,1769976641054,-250.0,0.00016811,2]
[404224453,1769976641063,-151.0,0.00016811,2]
[404224454,1769976641072,-200.0,0.00016811,2]
[404224455,1769976641082,-250.0,0.00016811,2]
[404224456,1769976641091,-151.0,0.00016811,2]
[404224457,1769976641100,-250.0,0.00016811,2]
[404224458,1769976641111,-151.0,0.00016811,2]
[404224459,1769976641121,-250.0,0.00016811,2]
[404224460,1769976641130,-151.0,0.00016811,2]
[404224461,1769976641141,-250.0,0.00016811,2]
[404224462,1769976641152,-151.0,0.00016811,2]
[404224463,1769976641164,-250.0,0.00016811,2]
[404224464,1769976641174,-151.0,0.00016811,2]
[404224465,1769976641183,-250.0,0.00016811,2]
[404224466,1769976641192,-500.0,0.00016811,2]
[404224467,1769976641202,-250.0,0.00016811,2]
[404224468,1769976641212,-500.0,0.00016811,2]
[404224469,1769976641222,-500.0,0.00016811,2]
[404224470,1769976641233,-500.0,0.00016811,2]
[404224471,1769976641243,-500.0,0.00016811,2]
[404224472,1769976641254,-500.0,0.00016811,2]
[404224473,1769976641263,-500.0,0.00016811,2]
[404224474,1769976641273,-500.0,0.00016811,2]
[404224475,1769976641283,-525.06041542,0.00016811,2]
[404224476,1769976641293,-500.0,0.00016811,2]
[404224477,1769976641303,-500.0,0.00016811,2]
[404224478,1769976641315,-500.0,0.00016811,2]
[404224479,1769976641326,-500.0,0.00016811,2]
[404224480,1769976641337,-500.0,0.00016811,2]
[404224481,1769976641347,-250.0,0.00016811,2]
[404224482,1769976641358,-500.0,0.00016811,2]
[404224483,1769976641368,-250.0,0.00016811,2]
[404224484,1769976641377,-500.0,0.00016811,2]
[404224485,1769976641387,-250.0,0.00016811,2]
[404224486,1769976641395,-500.0,0.00016811,2]
[404224487,1769976641407,-250.0,0.00016811,2]
[404224488,1769976641416,-500.0,0.00016811,2]
[404224489,1769976641425,-250.0,0.00016811,2]
[404224490,1769976641435,-465.78763801,0.00016811,2]
[404224491,1769976641444,-500.0,0.00016811,2]
[404224492,1769976641453,-250.0,0.00016811,2]
[404224493,1769976641463,-250.0,0.00016811,2]
[404224494,1769976641474,-250.0,0.00016811,2]
[404224495,1769976641483,-250.0,0.00016811,2]
[404224496,1769976641492,-250.0,0.00016811,2]
[404224497,1769976641503,-250.0,0.00016811,2]
[404224498,1769976641512,-500.0,0.00016811,2]
[404224499,1769976641522,-500.0,0.00016811,2]
[404224500,1769976641531,-500.0,0.00016811,2]
[404224501,1769976641540,-500.0,0.00016811,2]
[404224502,1769976641550,-500.0,0.00016811,2]
[404224503,1769976641559,-500.0,0.00016811,2]
[404224504,1769976641569,-500.0,0.00016811,2]
[404224505,1769976641578,-500.0,0.00016811,2]
[404224506,1769976641587,-500.0,0.00016811,2]
[404224507,1769976641596,-500.0,0.00016811,2]
[404224508,1769976641607,-500.0,0.00016811,2]
[404224509,1769976641616,-13587.38,0.00016821,2]
[404224510,1769976641626,-225.18697532,0.00016852,2]
[404224511,1769976641636,-250.0,0.00016858,2]
[404224512,1769976641645,-233.51889341,0.00016907,2]
[404224513,1769976641654,-1952.66958757,0.00016922,2]
[404224514,1769976641664,-242.15909246,0.00016962,2]
[404224515,1769976641673,-251.11897888,0.00017017,2]
[404224516,1769976641684,-1952.66958757,0.00017061,2]
[404224517,1769976641693,-260.4103811,0.00017072,2]
[404224518,1769976641702,-270.0455652,0.00017127,2]
[404224519,1769976641712,-280.03725112,0.00017182,2]
[404224520,1769976641721,-1952.66958757,0.00017201,2]
[404224521,1769976641731,-290.39862941,0.00017237,2]
[404224522,1769976641740,-3657.0,0.0001724,2]
[404224523,1769976641749,-181.08010149,0.0001729,2]
[404224524,1769976641759,-301.1433787,0.00017292,2]
[404224525,1769976641769,-3657.0,0.00017298,2]
[404224526,1769976641778,-1952.66958757,0.00017341,2]
[404224527,1769976641787,-164.77811604,0.00017359,2]
[404224528,1769976641796,-1481.23780761,0.00017359,2]
[404224529,1769976641810,-500.0,0.00017359,2]
[404224530,1769976641822,-1680.0,0.00017375,2]
[404224531,1769976641833,-502.0,0.00017397,2]
[404224532,1769976641844,-3657.0,0.00017413,2]
[404224533,1769976641853,-3657.0,0.00017459,2]
[404224534,1769976641862,-1952.66958757,0.00017481,2]
[404224535,1769976641872,-3657.0,0.000175,2]
[404224536,1769976641882,-1898.85844425,0.0001751,2]
[404224537,1769976641891,-6577.0,0.00017511,2]
[404224538,1769976641900,-2445.0,0.00017511,2]
[404224539,1769976641911,-3252.0,0.00017511,2]
[404224540,1769976641920,-1000.0,0.00017534,2]
[404224541,1769976641930,-1952.66958757,0.0001762,2]
[404224542,1769976641939,-164.77811603,0.0001763,2]
[404224543,1769976641948,-457.29474664,0.0001764,2]
[404224544,1769976641958,-2138.80336941,0.00017691,2]
[404224545,1769976641967,-269.0,0.00017704,2]
[404224546,1769976641977,-743.53578904,0.00017708,3]
[404224547,1769976641986,-1925.01040329,0.00017715,2]
[404224548,1769976641996,-205.78755407,0.00017716,2]
[404224549,1769976642006,-1952.66958757,0.0001776,2]
[404224550,1769976642015,-269.0,0.00017786,2]
[404224551,1769976642025,-10138.3866,0.00017789,2]
[404224552,1769976642034,-33275.4141,0.00017789,2]
[404224553,1769976642043,-10000.0,0.00017791,2]
[404224554,1769976642052,-743.53578902,0.00017804,3]
[404224555,1769976642062,-1925.01040328,0.00017808,2]
[404224556,1769976642072,-1000.0,0.00017808,2]
[404224557,1769976642082,-3657.0,0.00017822,2]
[404224558,1769976642091,-109605.83836455,0.0001783,2]
[404224559,1769976642101,-230.0,0.00017836,2]
[404224560,1769976642110,-187.78006525,0.00017838,2]
[404224561,1769976642119,-25000.0,0.00017891,3]
[404224562,1769976642128,-1000.0,0.000179,2]
[404224563,1769976642137,-25000.0,0.000179,3]
[404224564,1769976642146,-15755.8365406,0.000179,3]
[404224565,1769976642157,-164.77811603,0.000179,2]
[404224566,1769976642167,-1925.01040328,0.000179,2]
[404224567,1769976642176,-743.53578902,0.000179,3]
[404224568,1769976642186,-205.78755407,0.000179,2]
[404224569,1769976642196,-202.47674057,0.000179,2]
[404224570,1769976642205,-25000.0,0.000179,3]
[404224571,1769976642216,-1952.66958757,0.000179,2]
[404224572,1769976642228,-1536.04360649,0.00017907,2]
[404224573,1769976642238,-500.0,0.00017907,2]
[404224574,1769976642248,-150.0,0.0001791,2]
[404224575,1769976642259,-150.149,0.0001791,2]
[404224576,1769976642270,-372.99,0.0001791,2]
[404224577,1769976642279,-1334.0,0.0001791,2]
[404224578,1769976642289,-726.399,0.0001791,2]
[404224579,1769976642299,-1208.946,0.0001791,2]
[404224580,1769976642308,-927.314,0.0001791,2]
[404224581,1769976642318,-150.01383074,0.00017966,2]
[404224582,1769976642328,-165.98060587,0.00017983,2]
[404224583,1769976642337,-165.98060587,0.0001799,2]
[404224584,1769976642347,-46247.3052751,0.00017993,2]
[404224585,1769976642356,-7435.7697524,0.00017993,2]
[404224586,1769976642366,-92472.20002,0.00017993,2]
[404224587,1769976642375,-1377.7224332,0.00017993,2]
[404224588,1769976642384,-323122.9657177,0.00017993,2]
[404224589,1769976642394,-7664.1251434,0.00017997,2]
[404224590,1769976642405,-80764.900061,0.00017997,2]
[404224591,1769976642414,-150.0,0.00017999,2]
[404224592,1769976642424,-150.0,0.00017999,2]
[404224593,1769976642433,-150.0,0.00017999,2]
[404224594,1769976642443,-150.0,0.00017999,2]
[404224595,1769976642452,-150.0,0.00017999,2]
[404224596,1769976642462,-281.69935258,0.00017999,2]
[404224597,1769976642471,-155.0,0.00017999,2]
[404224598,1769976642481,-300.0,0.00017999,2]
[404224599,1769976642490,-1000.68755277,0.00018,2]
[404224600,1769976642499,-376256.65940209,0.00018,2]
[404224601,1769976642508,-151.71900859,0.00018,2]
[404224602,1769976642518,-1000.0,0.00018,2]
[404224603,1769976642527,-1000.0,0.00018,2]
[404224604,1769976642536,-1000.0,0.00018,2]
[404224605,1769976642546,-1000.0,0.00018,2]
[404224606,1769976642555,-1000.0,0.00018,2]
[404224607,1769976642564,-1000.0,0.00018,2]
[404224608,1769976642573,-1000.0,0.00018,2]
[404224609,1769976642583,-1000.0,0.00018,2]
[404224610,1769976642592,-1000.0,0.00018,2]
[404224611,1769976642601,-1000.0,0.00018,2]
[404224612,1769976642611,-1000.0,0.00018,2]
[404224613,1769976642620,-1000.0,0.00018,2]
[404224614,1769976642629,-1000.0,0.00018,2]
[404224615,1769976642638,-1000.0,0.00018,2]
[404224616,1769976642647,-1000.0,0.00018,2]
[404224617,1769976642657,-1000.0,0.00018,2]
[404224618,1769976642666,-1000.0,0.00018,2]
[404224619,1769976642675,-1000.0,0.00018,2]
[404224620,1769976642685,-1000.0,0.00018,2]
[404224621,1769976642694,-1000.0,0.00018,2]
[404224622,1769976642703,-1000.0,0.00018,2]
[404224623,1769976642712,-1000.0,0.00018,2]
[404224624,1769976642721,-1000.0,0.00018,2]
[404224625,1769976642730,-1000.0,0.00018,2]
[404224626,1769976642740,-1000.0,0.00018,2]
[404224627,1769976642749,-1000.0,0.00018,2]
[404224628,1769976642758,-1026.12525715,0.00018,2]
[404224629,1769976642769,-562719.11613622,0.00018,2]
[404224630,1769976642904,-570.91039774,0.00018,2]
[404224636,1769976643900,-536.29,0.00017253,2]
[404224637,1769976643911,-536.29,0.00017527,2]
[404224638,1769976643921,-2138.8033694,0.00017796,2]
[404224639,1769976643931,-256.2266306,0.00017801,2]
[404224640,1769976644541,-119.2290235,0.00017801,2]
[404224641,1769976644588,-160.8343459,0.00017801,2]
[404224642,1769976644599,-244.48564155,0.00018,2]
[404224650,1769976645857,-151.0,0.0001618,2]
[404224651,1769976645866,-567.0,0.00017511,2]
[404224652,1769976645875,-110681.41349134,0.00018,2]
[404224653,1769976645911,-541.99999974,0.00018,2]
[404224654,1769976645922,-390.85000003,0.00018,2]
[404224655,1769976646021,-9290.67953845,0.00018,2]
[404224656,1769976646124,-311.11452737,0.00018,2]
[404224657,1769976646137,-651.0,0.00018,2]
[404224658,1769976646232,-7427.32049776,0.00018,2]
[404224725,1769976817321,150.1688723,0.00014011,2]
[404224727,1769977003544,159.44,0.00013077,2]
[404224735,1769977118581,150.1688723,0.00013699,2]
[404224932,1769977836375,-816.23954548,0.000135,2]
[404224934,1769977836384,-166.66,0.00014954,2]
[404224935,1769977836394,-195.0,0.00015112,2]
[404224936,1769977836404,-150.00690623,0.00015269,2]
[404224937,1769977836417,-166.66,0.00015269,2]
[404224938,1769977836428,-133.03817211,0.00015378,2]
[404224939,1769977836482,-28.02182789,0.00015378,2]
[404224940,1769977836493,-188.33,0.00015451,2]
[404224941,1769977836505,-166.66,0.00015584,2]
[404224942,1769977836515,-194.90144509,0.00015807,2]
[404224943,1769977836525,-151.0,0.0001587,2]
[404224944,1769977836535,-151.0,0.0001587,2]
[404224945,1769977836544,-166.66,0.00015899,2]
[404224946,1769977836554,-300.0,0.00015999,2]
[404224947,1769977836562,-1200.0,0.00015999,2]
[404224948,1769977836571,-956.68560737,0.00016,2]
[404224949,1769977836580,-254.37848444,0.00016,2]
[404224950,1769977836590,-420.33105605,0.00016,2]
[404224951,1769977836599,-504.0,0.00016,2]
[404224952,1769977836608,-161.06,0.00016146,2]
[404224953,1769977836618,-5000.00204657,0.000162,5]
[404224954,1769977836628,-575.03,0.00016204,2]
[404224955,1769977836641,-166.66,0.00016214,2]
[404224956,1769977836650,-194.92670974,0.00016215,2]
[404224957,1769977836659,-500.0,0.00016215,2]
[404224958,1769977836670,-500.0,0.00016215,2]
[404224959,1769977836680,-503.64430583,0.00016215,2]
[404224961,1769977836689,-500.28380904,0.00016215,2]
[404224963,1769977836698,-501.09354787,0.00016215,2]
[404224964,1769977836707,-501.49582385,0.00016215,2]
[404224965,1769977836717,-500.0,0.00016215,2]
[404224966,1769977836726,-2860.86363383,0.00016274,2]
[404224967,1769977836735,-7340.85845731,0.00016274,2]
[404224968,1769977836746,-186.09929734,0.00016337,2]
[404224969,1769977836755,-439069.98303095,0.00016347,2]
[404225044,1769977837887,-640.39747628,0.00016347,2]
[404225045,1769977837899,-837.57754225,0.00016347,2]
[404225046,1769977837943,-693.2462219,0.00016347,2]
[404225047,1769977838000,-476.81295156,0.00016347,2]
[404225062,1769977839918,-2095.592,0.00016347,2]
[404225063,1769977839931,-2456186.39077706,0.00016347,2]
[404225064,1769977839941,-1161.959,0.00016374,2]
[404225065,1769977839952,-1201.23,0.0001638,2]
[404225066,1769977839961,-270.34,0.00016401,2]
[404225067,1769977839970,-174.95788467,0.00016402,2]
[404225068,1769977839980,-150.0,0.00016447,2]
[404225069,1769977839989,-150.0,0.00016447,2]
[404225070,1769977840000,-195.0,0.0001645,2]
[404225071,1769977840011,-2860.86363377,0.00016455,2]
[404225072,1769977840021,-7340.85845729,0.00016455,2]
[404225073,1769977840031,-500.0,0.00016464,2]
[404225074,1769977840186,-151.0,0.00016464,2]
[404225075,1769977840235,-151.0,0.00016464,2]
[404225076,1769977840244,-151.0,0.00016464,2]
[404225077,1769977840255,-151.0,0.00016464,2]
[404225078,1769977840267,-151.0,0.00016464,2]
[404225079,1769977840277,-151.0,0.00016464,2]
[404225080,1769977840287,-151.0,0.00016464,2]
[404225081,1769977840298,-151.0,0.00016464,2]
[404225082,1769977840308,-151.0,0.00016464,2]
[404225083,1769977840317,-151.0,0.00016464,2]
[404225084,1769977840326,-151.0,0.00016464,2]
[404225085,1769977840336,-500.0,0.00016464,2]
[404225086,1769977840348,-500.0,0.00016464,2]
[404225087,1769977840357,-500.0,0.00016464,2]
[404225088,1769977840367,-500.0,0.00016464,2]
[404225089,1769977840377,-500.0,0.00016464,2]
[404225090,1769977840386,-500.0,0.00016464,2]
[404225091,1769977840396,-500.0,0.00016464,2]
[404225092,1769977840405,-500.0,0.00016464,2]
[404225093,1769977840414,-500.0,0.00016464,2]
[404225094,1769977840424,-500.0,0.00016464,2]
[404225095,1769977840434,-500.0,0.00016464,2]
[404225096,1769977840444,-500.0,0.00016464,2]
[404225097,1769977840453,-500.0,0.00016464,2]
[404225098,1769977840462,-500.0,0.00016464,2]
[404225099,1769977840472,-500.0,0.00016464,2]
[404225100,1769977840481,-500.0,0.00016464,2]
[404225101,1769977840491,-200.0,0.00016464,2]
[404225102,1769977840500,-500.0,0.00016464,2]
[404225103,1769977840509,-500.0,0.00016464,2]
[404225104,1769977840518,-500.0,0.00016464,2]
[404225105,1769977840527,-500.0,0.00016464,2]
[404225106,1769977840536,-500.0,0.00016464,2]
[404225107,1769977840546,-500.0,0.00016464,2]
[404225108,1769977840555,-500.0,0.00016464,2]
[404225109,1769977840564,-465.78763801,0.00016464,2]
[404225110,1769977840574,-200.0,0.00016464,2]
[404225111,1769977840583,-500.0,0.00016473,2]
[404225112,1769977840592,-189.96211611,0.00016473,2]